bitfinex/quotes_SOLUSD_20230104
["timestamp","ask_amount","ask_price","bid_price","bid_amount"]
[1672848060435,56.34,13.324,13.301,56.44]
[1672848060648,20.0,13.325,13.302,293.7660367]
[1672848060862,20.0,13.325,13.303,298.13]
[1672848061074,20.0,13.326,13.304,20.0]
[1672848061399,20.0,13.326,13.305,56.42]
[1672848061611,56.33,13.325,13.301,172.7375]
[1672848061827,20.0,13.324,13.3,28.016]
[1672848062017,224.7,13.322,13.3,28.016]
[1672848062229,30.17438564,13.324,13.3,28.016]
[1672848062230,224.7,13.32,13.3,28.016]
[1672848062446,224.7,13.318,13.3,28.016]
[1672848062652,224.7,13.316,13.3,28.016]
[1672848062882,76.38,13.315,13.3,28.016]
[1672848063082,20.0,13.314,13.3,28.016]
[1672848063275,56.38,13.313,13.3,28.016]
[1672848063491,20.0,13.312,13.3,28.016]
[1672848063701,56.39,13.311,13.3,28.016]
[1672848063931,20.0,13.31,13.3,28.016]
[1672848064126,56.4,13.309,13.3,28.016]
[1672848064334,20.0,13.308,13.3,28.016]
[1672848064539,56.41,13.307,13.3,28.016]
[1672848064758,20.0,13.306,13.3,28.016]
[1672848064974,56.42,13.305,13.3,28.016]
[1672848065302,20.0,13.304,13.3,28.016]
[1672848065604,56.43,13.303,13.3,28.016]
[1672848065824,66.60438564,13.303,13.3,28.016]
[1672848066025,224.7,13.324,13.3,28.016]
[1672848066243,10.17438564,13.303,13.3,28.016]
[1672848066433,281.05,13.321,13.3,28.016]
[1672848066648,291.22438564,13.321,13.3,28.016]
[1672848069478,56.34,13.323,13.3,28.016]
[1672848069692,56.3,13.332,13.301,56.44]
[1672848069897,10.17438564,13.328,13.301,165.8448]
[1672848070109,56.33,13.327,13.301,216.5759866]
[1672848070315,56.33,13.327,13.301,165.8448]
[1672848070529,10.17438564,13.326,13.301,227.59312256]
[1672848070739,56.33,13.325,13.301,227.59312256]
[1672848070968,20.0,13.324,13.301,227.59312256]
[1672848071185,56.34,13.323,13.301,227.59312256]
[1672848071370,56.28,13.337,13.302,50.7311866]
[1672848071581,56.27,13.34,13.303,56.43]
[1672848071813,10.17438564,13.327,13.303,118.17832256]
[1672848072015,56.33,13.326,13.303,118.17832256]
[1672848072420,66.50438564,13.326,13.303,61.74832256]
[1672848072630,66.50438564,13.326,13.301,214.0966]
[1672848072895,66.50438564,13.326,13.301,157.6566]
[1672848073627,66.50438564,13.326,13.302,56.43]
[1672848073812,66.50438564,13.326,13.301,438.7966]
[1672848074148,20.0,13.325,13.301,214.0966]
[1672848074336,56.34,13.324,13.303,60.80452256]
[1672848074547,56.34,13.324,13.301,214.0966]
[1672848074548,20.0,13.323,13.301,214.0966]
[1672848074750,56.35,13.322,13.301,274.90112256]
[1672848075082,20.0,13.321,13.301,274.90112256]
[1672848075294,56.36,13.32,13.301,157.6566]
[1672848075507,20.0,13.319,13.302,117.23452256]
[1672848076116,10.17438564,13.318,13.302,56.43]
[1672848076326,20.0,13.317,13.303,22.7045]
[1672848076766,10.17438564,13.316,13.304,75.53]
[1672848076969,20.0,13.315,13.304,75.53]
[1672848077297,10.17438564,13.316,13.304,75.53]
[1672848077488,20.0,13.315,13.303,22.7045]
[1672848077698,20.0,13.317,13.303,22.7045]
[1672848078124,20.0,13.32,13.304,75.53]
[1672848078334,20.0,13.332,13.303,22.7045]
[1672848078546,56.31,13.331,13.304,56.42]
[1672848078752,20.0,13.33,13.305,75.53]
[1672848078955,56.32,13.329,13.305,75.53]
[1672848079172,20.0,13.328,13.304,75.53]
[1672848079392,56.33,13.327,13.306,75.53]
[1672848079606,36.93815847,13.361,13.308,75.53]
[1672848079816,50.76442847,13.361,13.311,75.53]
[1672848080130,60.93881411,13.36,13.313,300.23]
[1672848080367,60.93881411,13.36,13.317,75.53]
[1672848080368,56.19,13.359,13.317,75.53]
[1672848080554,44.37409012,13.358,13.319,75.53]
[1672848080747,56.2,13.357,13.321,75.53]
[1672848080952,56.2,13.357,13.323,300.23]
[1672848081278,56.2,13.357,13.325,75.53]
[1672848085189,10.17438564,13.344,13.322,56.35]
[1672848085611,20.0,13.343,13.322,56.35]
[1672848086033,20.0,13.343,13.323,75.53]
[1672848086357,20.0,13.343,13.325,75.53]
[1672848086550,56.19,13.359,13.326,56.33]
[1672848086768,20.0,13.359,13.326,116.65156458]
[1672848086978,56.19,13.358,13.326,76.33]
[1672848087191,20.0,13.357,13.326,76.33]
[1672848087405,56.2,13.356,13.327,57.58156458]
[1672848087599,20.0,13.355,13.328,56.32]
[1672848087836,20.0,13.355,13.329,17.0]
[1672848088023,20.0,13.355,13.33,56.31]
[1672848088246,10.17438564,13.356,13.33,56.31]
[1672848088461,56.21,13.355,13.331,17.0]
[1672848088645,101.38318773,13.368,13.332,56.3]
[1672848088862,10.17438564,13.36,13.332,105.0081]
[1672848089075,76.19,13.359,13.332,105.0081]
[1672848090035,76.19,13.359,13.332,161.89159294]
[1672848090524,76.19,13.359,13.333,17.0]
[1672848090742,20.0,13.359,13.335,75.53]
[1672848090949,10.17438564,13.363,13.336,73.29]
[1672848091175,10.17438564,13.359,13.337,20.0]
[1672848091363,56.15,13.368,13.338,56.28]
[1672848091579,10.17438564,13.361,13.338,56.28]
[1672848091807,10.17438564,13.361,13.339,116.74]
[1672848091808,56.19,13.36,13.339,116.74]
[1672848091997,56.19,13.36,13.34,56.27]
[1672848092211,10.17438564,13.361,13.34,56.27]
[1672848092409,56.19,13.36,13.34,56.27]
[1672848092615,10.17438564,13.361,13.34,56.27]
[1672848092826,10.17438564,13.359,13.34,56.27]
[1672848093247,102.09710606,13.371,13.34,56.27]
[1672848093566,102.09710606,13.371,13.341,71.1942]
[1672848093567,20.0,13.37,13.341,71.1942]
[1672848093786,224.7,13.368,13.335,23.6239]
[1672848093988,76.16,13.367,13.335,23.6239]
[1672848094204,224.7,13.366,13.335,23.6239]
[1672848094415,224.7,13.364,13.335,23.6239]
[1672848094623,76.17,13.363,13.335,23.6239]
[1672848095030,86.34438564,13.363,13.335,23.6239]
[1672848095245,10.17438564,13.362,13.335,23.6239]
[1672848095459,76.18,13.361,13.335,23.6239]
[1672848095673,66.35438564,13.361,13.335,23.6239]
[1672848095992,10.17438564,13.36,13.335,23.6239]
[1672848096208,339.59,13.359,13.335,23.6239]
[1672848096609,10.17438564,13.358,13.335,23.6239]
[1672848096839,76.2,13.357,13.335,23.6239]
[1672848097245,10.17438564,13.356,13.335,23.6239]
[1672848097457,56.21,13.355,13.335,23.6239]
[1672848097667,20.0,13.354,13.335,23.6239]
[1672848097884,56.22,13.353,13.335,23.6239]
[1672848098099,20.0,13.352,13.335,23.6239]
[1672848098313,56.22,13.351,13.335,23.6239]
[1672848098521,20.0,13.35,13.335,23.6239]
[1672848099578,9.90512997,13.355,13.335,99.1539]
[1672848099774,76.21,13.354,13.335,99.1539]
[1672848099985,56.21,13.354,13.335,99.1539]
[1672848100300,20.0,13.353,13.335,99.1539]
[1672848100724,20.0,13.355,13.335,99.1539]
[1672848100936,56.21,13.354,13.335,23.6239]
[1672848101261,20.0,13.353,13.336,56.29]
[1672848101472,20.0,13.355,13.336,56.29]
[1672848101674,9.90512997,13.353,13.336,56.29]
[1672848101882,76.22,13.352,13.335,23.6239]
[1672848102303,9.90512997,13.351,13.335,23.6239]
[1672848102512,20.0,13.35,13.335,79.9139]
[1672848103055,9.90512997,13.354,13.335,23.6239]
[1672848103368,76.22,13.353,13.335,23.6239]
[1672848103691,20.0,13.352,13.335,23.6239]
[1672848103887,29.90512997,13.352,13.335,23.6239]
[1672848104082,9.90512997,13.351,13.335,23.6239]
[1672848104290,20.0,13.35,13.335,23.6239]
[1672848104496,66.12512997,13.351,13.335,23.6239]
[1672848104706,29.90512997,13.35,13.334,24.949]
[1672848104945,29.90512997,13.35,13.327,56.33]
[1672848104946,280.93,13.349,13.327,56.33]
[1672848105136,20.0,13.348,13.315,75.53]
[1672848105468,280.94,13.347,13.317,75.53]
[1672848105779,29.90512997,13.346,13.319,75.53]
[1672848105971,56.25,13.345,13.321,75.53]
[1672848106186,56.25,13.345,13.323,75.53]
[1672848106187,20.0,13.344,13.323,75.53]
[1672848106406,56.26,13.343,13.324,56.34]
[1672848106611,20.0,13.342,13.323,75.53]
[1672848107042,29.90512997,13.342,13.322,75.53]
[1672848107358,66.17512997,13.341,13.321,56.35]
[1672848107566,20.0,13.34,13.32,71.9292]
[1672848107779,56.27,13.339,13.32,71.9292]
[1672848107988,20.0,13.338,13.32,71.9292]
[1672848108195,56.28,13.337,13.32,71.9292]
[1672848108410,20.0,13.336,13.32,71.9292]
[1672848108624,56.29,13.335,13.32,71.9292]
[1672848108816,20.0,13.334,13.32,71.9292]
[1672848109033,56.3,13.333,13.32,71.9292]
[1672848109236,20.0,13.334,13.32,71.9292]
[1672848109237,20.0,13.332,13.32,71.9292]
[1672848109450,56.3,13.333,13.32,71.9292]
[1672848109776,56.25,13.346,13.32,71.9292]
[1672848109983,20.0,13.345,13.32,71.9292]
[1672848110190,56.25,13.344,13.32,71.9292]
[1672848110386,20.0,13.343,13.32,71.9292]
[1672848110597,56.26,13.342,13.32,71.9292]
[1672848110812,20.0,13.341,13.32,71.9292]
[1672848111021,56.27,13.34,13.32,71.9292]
[1672848111231,20.0,13.339,13.32,71.9292]
[1672848111564,56.28,13.338,13.32,71.9292]
[1672848111778,20.0,13.337,13.32,71.9292]
[1672848112092,56.29,13.336,13.32,71.9292]
[1672848112305,20.0,13.335,13.32,71.9292]
[1672848112612,56.3,13.334,13.32,71.9292]
[1672848112819,20.0,13.333,13.303,38.72140066]
[1672848113033,20.0,13.333,13.302,56.43]
[1672848113034,56.3,13.332,13.304,56.42]
[1672848113349,56.3,13.332,13.303,56.43]
[1672848113350,66.20512997,13.332,13.303,56.43]
[1672848113667,29.90512997,13.331,13.303,150.3992]
[1672848113875,56.31,13.33,13.303,150.3992]
[1672848114090,20.0,13.329,13.303,150.3992]
[1672848114282,56.32,13.328,13.303,150.3992]
[1672848114488,20.0,13.327,13.303,150.3992]
[1672848114700,56.33,13.326,13.303,150.3992]
[1672848114922,20.0,13.325,13.303,150.3992]
[1672848115132,29.90512997,13.325,13.303,150.3992]
[1672848115338,20.0,13.325,13.303,150.3992]
[1672848115555,20.0,13.339,13.304,20.0]
[1672848115764,9.90512997,13.329,13.305,56.42]
[1672848115971,56.27,13.34,13.307,75.53]
[1672848116286,56.27,13.34,13.308,281.11]
[1672848116287,9.90512997,13.337,13.308,281.11]
[1672848116503,9.90512997,13.337,13.311,38.72140066]
[1672848116716,9.90512997,13.337,13.312,170.5973]
[1672848116912,56.26,13.342,13.312,170.5973]
[1672848117120,56.26,13.342,13.313,171.0044]
[1672848117338,9.90512997,13.339,13.314,56.38]
[1672848117549,56.28,13.338,13.314,56.38]
[1672848117894,9.90512997,13.337,13.314,56.38]
[1672848118088,56.29,13.336,13.314,56.38]
[1672848118274,56.29,13.336,13.313,95.4744]
[1672848118598,9.90512997,13.335,13.313,95.4744]
[1672848118814,56.3,13.334,13.313,95.4744]
[1672848119025,56.3,13.334,13.314,56.38]
[1672848119240,9.90512997,13.333,13.313,151.8544]
[1672848119446,76.3,13.332,13.313,22.8053]
[1672848119856,9.90512997,13.331,13.313,22.8053]
[1672848120062,76.31,13.33,13.306,70.5771]
[1672848120389,9.90512997,13.329,13.306,70.5771]
[1672848120600,76.32,13.328,13.306,70.5771]
[1672848121022,76.32,13.328,13.303,38.72140066]
[1672848121023,234.60512997,13.327,13.3,28.016]
[1672848121338,224.7,13.325,13.3,28.016]
[1672848121546,224.7,13.323,13.3,28.016]
[1672848121862,224.7,13.321,13.3,28.016]
[1672848122074,76.35,13.322,13.3,28.016]
[1672848122075,224.7,13.319,13.3,28.016]
[1672848122389,224.7,13.317,13.3,28.016]
[1672848122577,224.7,13.315,13.3,28.016]
[1672848122784,224.7,13.313,13.3,28.016]
[1672848123003,224.7,13.311,13.3,28.016]
[1672848123335,76.4,13.31,13.3,28.016]
[1672848123538,66.40718255,13.31,13.3,28.016]
[1672848123764,20.0,13.309,13.3,28.016]
[1672848123951,56.41,13.308,13.3,28.016]
[1672848124163,20.0,13.307,13.3,28.016]
[1672848124371,56.41,13.306,13.3,28.016]
[1672848124690,20.0,13.305,13.3,28.016]
[1672848124898,30.00718255,13.305,13.3,28.016]
[1672848125108,30.00718255,13.304,13.3,28.016]
[1672848125320,56.43,13.303,13.3,28.016]
[1672848125533,20.0,13.302,13.3,28.016]
[1672848125755,30.00718255,13.302,13.3,28.016]
[1672848126154,10.00718255,13.301,13.286,72.4684]
[1672848126488,10.00718255,13.301,13.281,349.11482066]
[1672848126489,76.44,13.3,13.281,349.11482066]
[1672848126699,20.0,13.3,13.282,56.52]
[1672848126909,10.00718255,13.301,13.282,56.52]
[1672848127221,20.0,13.3,13.282,56.52]
[1672848127431,20.0,13.3,13.283,97.8094]
[1672848127628,20.0,13.306,13.284,56.51]
[1672848127841,56.37,13.317,13.285,46.6868546]
[1672848128056,56.35,13.321,13.292,56.47]
[1672848128261,66.34718255,13.323,13.293,109.7739]
[1672848128472,10.00718255,13.321,13.294,56.46]
[1672848128683,56.35,13.32,13.294,56.46]
[1672848128892,281.05,13.32,13.294,56.46]
[1672848129107,10.00718255,13.319,13.294,56.46]
[1672848129317,224.7,13.317,13.294,56.46]
[1672848129531,281.07,13.316,13.294,56.46]
[1672848129739,291.07718255,13.316,13.294,56.46]
[1672848129953,10.00718255,13.315,13.294,56.46]
[1672848130169,56.38,13.314,13.294,56.46]
[1672848130696,10.00718255,13.313,13.293,202.7744]
[1672848130904,224.7,13.311,13.282,56.52]
[1672848131219,86.40718255,13.31,13.284,115.4358]
[1672848131533,76.4,13.31,13.285,56.5]
[1672848131733,10.00718255,13.309,13.285,56.5]
[1672848131938,76.41,13.308,13.285,56.5]
[1672848132149,76.41,13.308,13.286,71.3967]
[1672848132360,10.00718255,13.307,13.286,71.3967]
[1672848132688,10.00718255,13.307,13.282,56.52]
[1672848132689,224.7,13.305,13.282,56.52]
[1672848132998,281.12,13.304,13.281,349.11482066]
[1672848133219,20.0,13.303,13.281,349.11482066]
[1672848133433,224.7,13.301,13.281,349.11482066]
[1672848133613,224.7,13.299,13.281,349.11482066]
[1672848133826,224.7,13.297,13.281,349.11482066]
[1672848134050,76.46,13.296,13.281,349.11482066]
[1672848134467,20.0,13.296,13.281,349.11482066]
[1672848134882,20.0,13.312,13.281,349.11482066]
[1672848135209,56.35,13.32,13.292,56.47]
[1672848135425,56.35,13.322,13.292,56.47]
[1672848135742,110.1249,13.343,13.292,56.47]
[1672848135743,10.00718255,13.326,13.292,56.47]
[1672848135948,10.00718255,13.322,13.293,201.441]
[1672848136158,56.35,13.321,13.294,56.46]
[1672848136687,56.34,13.324,13.294,56.46]
[1672848137093,291.04718255,13.324,13.294,56.46]
[1672848137934,20.0,13.323,13.294,56.46]
[1672848138162,56.35,13.322,13.294,56.46]
[1672848138477,224.7,13.321,13.294,56.46]
[1672848138690,56.35,13.32,13.294,56.46]
[1672848138887,66.35718255,13.32,13.294,56.46]
[1672848139098,10.00718255,13.319,13.294,56.46]
[1672848139323,56.36,13.318,13.294,56.46]
[1672848139634,10.00718255,13.317,13.294,56.46]
[1672848139847,56.37,13.316,13.294,56.46]
[1672848140040,20.0,13.315,13.294,56.46]
[1672848140669,20.0,13.316,13.294,56.46]
[1672848141100,30.00718255,13.316,13.294,56.46]
[1672848142561,20.0,13.316,13.294,56.46]
[1672848142781,20.0,13.322,13.294,56.46]
[1672848143104,56.33,13.326,13.295,20.0]
[1672848143419,66.3343624,13.329,13.297,75.53]
[1672848143733,56.32,13.329,13.298,56.45]
[1672848144044,670.14495248,13.369,13.299,312.8253]
[1672848144045,336.94765895,13.365,13.299,312.8253]
[1672848144261,339.48615047,13.35,13.301,224.7]
[1672848144476,10.0143624,13.33,13.302,431.707]
[1672848144875,10.0143624,13.33,13.303,75.53]
[1672848145085,10.0143624,13.33,13.304,93.42]
[1672848145412,56.26,13.342,13.304,202.96158261]
[1672848145733,10.0143624,13.341,13.304,278.49158261]
[1672848145937,56.27,13.34,13.305,17.0]
[1672848146152,56.27,13.34,13.306,76.41]
[1672848146343,10.0143624,13.339,13.306,402.50860439]
[1672848146565,56.28,13.338,13.307,95.30588261]
[1672848146887,10.0143624,13.337,13.308,56.41]
[1672848147201,56.25,13.346,13.309,241.7]
[1672848147407,330.08811552,13.367,13.311,224.7]
[1672848147408,10.0143624,13.344,13.311,224.7]
[1672848147731,10.0143624,13.344,13.313,224.7]
[1672848147962,56.23,13.35,13.314,318.08]
[1672848148252,10.0143624,13.349,13.315,75.53]
[1672848148458,56.24,13.348,13.316,56.37]
[1672848148656,56.24,13.348,13.317,20.0]
[1672848148868,10.00273094,13.347,13.318,56.36]
[1672848149096,56.25,13.346,13.318,56.36]
[1672848149403,10.00273094,13.345,13.318,56.36]
[1672848149616,20.0,13.344,13.318,56.36]
[1672848149819,56.26,13.343,13.317,95.3234]
[1672848150031,20.0,13.342,13.317,95.3234]
[1672848150347,56.27,13.341,13.317,95.3234]
[1672848150551,20.0,13.34,13.317,95.3234]
[1672848150770,56.28,13.339,13.317,95.3234]
[1672848150970,20.0,13.338,13.317,95.3234]
[1672848151184,56.28,13.337,13.317,95.3234]
[1672848151394,20.0,13.336,13.317,95.3234]
[1672848151601,56.29,13.335,13.317,95.3234]
[1672848151820,20.0,13.334,13.317,95.3234]
[1672848152259,30.00273094,13.334,13.317,95.3234]
[1672848152453,10.00273094,13.333,13.317,95.3234]
[1672848152665,20.0,13.332,13.317,95.3234]
[1672848152989,10.00273094,13.331,13.317,95.3234]
[1672848153202,20.0,13.33,13.317,95.3234]
[1672848153712,10.00273094,13.329,13.317,95.3234]
[1672848153921,20.0,13.328,13.317,95.3234]
[1672848154129,20.0,13.33,13.317,95.3234]
[1672848154657,20.0,13.333,13.317,95.3234]
[1672848155827,10.00273094,13.335,13.318,56.36]
[1672848156037,20.0,13.334,13.318,56.36]
[1672848156445,30.00273094,13.334,13.318,56.36]
[1672848156976,619.54241049,13.409,13.318,56.36]
[1672848156977,20.0,13.349,13.318,56.36]
[1672848157194,56.24,13.348,13.318,56.36]
[1672848157405,77.44280131,13.386,13.319,46.6239226]
[1672848157406,66.23273094,13.35,13.319,46.6239226]
[1672848157597,66.23273094,13.35,13.32,56.36]
[1672848157808,10.00273094,13.348,13.319,56.36]
[1672848158018,10.00273094,13.348,13.32,116.0612]
[1672848158238,10.00273094,13.348,13.321,56.35]
[1672848158443,10.00273094,13.348,13.322,45.5905]
[1672848158648,10.00273094,13.348,13.323,56.34]
[1672848159396,56.24,13.347,13.323,56.34]
[1672848159612,20.0,13.346,13.324,23.9125]
[1672848159826,30.00273094,13.346,13.325,56.33]
[1672848160013,10.00273094,13.345,13.325,56.33]
[1672848160224,20.0,13.344,13.325,56.33]
[1672848160537,10.00273094,13.343,13.325,56.33]
[1672848160771,20.0,13.342,13.325,56.33]
[1672848161170,10.00273094,13.341,13.325,56.33]
[1672848161380,20.0,13.34,13.325,56.33]
[1672848162535,30.00273094,13.34,13.325,56.33]
[1672848163065,20.0,13.34,13.325,56.33]
[1672848163269,56.2,13.357,13.325,281.03]
[1672848163590,110.9191,13.372,13.327,224.7]
[1672848163911,263.4,13.381,13.33,75.53]
[1672848164131,225.1777,13.38,13.331,171.3363]
[1672848164328,235.1083,13.379,13.331,496.19066437]
[1672848164542,224.7,13.377,13.333,224.7]
[1672848164757,224.7,13.375,13.335,224.7]
[1672848164968,56.13,13.374,13.336,204.6433]
[1672848165177,280.83,13.374,13.336,304.79766437]
[1672848165397,280.83,13.374,13.337,100.15436437]
[1672848165707,20.0,13.373,13.338,56.28]
[1672848165919,280.83,13.374,13.338,56.28]
[1672848165920,200.83,13.374,13.338,56.28]
[1672848166109,56.14,13.372,13.339,100.15436437]
[1672848166321,224.7,13.375,13.34,56.27]
[1672848166532,56.13,13.374,13.338,56.28]
[1672848166735,56.12,13.376,13.339,75.53]
[1672848166948,56.12,13.376,13.34,56.27]
[1672848167158,20.0,13.375,13.339,56.28]
[1672848167365,224.7,13.373,13.338,103.5898]
[1672848167594,224.7,13.371,13.338,47.3098]
[1672848167789,224.7,13.369,13.338,47.3098]
[1672848167996,224.7,13.367,13.338,47.3098]
[1672848168226,224.7,13.365,13.338,47.3098]
[1672848168416,224.7,13.363,13.319,56.36]
[1672848168626,224.7,13.361,13.32,194.9618]
[1672848168840,203.66674,13.362,13.321,56.35]
[1672848168841,224.7,13.359,13.321,56.35]
[1672848169050,300.9,13.358,13.321,56.35]
[1672848169276,280.9,13.358,13.321,56.35]
[1672848169482,20.0,13.357,13.321,56.35]
[1672848169690,224.7,13.355,13.321,56.35]
[1672848169890,224.7,13.353,13.322,24.0251]
[1672848170101,117.0557,13.362,13.308,56.41]
[1672848170102,224.7,13.351,13.308,56.41]
[1672848170311,10.45355,13.35,13.301,38.72140066]
[1672848170532,10.45355,13.35,13.305,56.42]
[1672848170533,244.7,13.349,13.305,56.42]
[1672848170757,224.7,13.347,13.307,38.72140066]
[1672848170945,56.25,13.346,13.309,38.72140066]
[1672848171156,56.24,13.347,13.31,168.197]
[1672848171373,56.24,13.347,13.311,20.0]
[1672848171582,56.24,13.347,13.312,56.39]
[1672848171781,56.24,13.347,13.313,20.0]
[1672848171987,56.24,13.347,13.314,56.38]
[1672848172198,448.2906685,13.362,13.315,89.8812]
[1672848172199,20.0,13.346,13.315,89.8812]
[1672848172428,56.25,13.345,13.316,56.37]
[1672848172620,20.0,13.344,13.316,56.37]
[1672848172835,224.7,13.342,13.316,56.37]
[1672848173060,76.27,13.341,13.316,56.37]
[1672848173271,76.27,13.341,13.315,69.8812]
[1672848175165,300.97,13.341,13.315,69.8812]
[1672848183267,300.97,13.341,13.315,23.3064]
[1672848184333,10.47584,13.34,13.315,23.3064]
[1672848184522,224.7,13.338,13.315,23.3064]
[1672848184734,76.28,13.337,13.315,23.3064]
[1672848185365,76.28,13.337,13.316,46.9297]
[1672848185576,76.28,13.337,13.316,103.2997]
[1672848186012,76.28,13.337,13.316,46.9297]
[1672848187794,73.78,13.337,13.316,46.9297]
[1672848190329,17.5,13.337,13.316,103.2997]
[1672848190640,76.29,13.336,13.316,103.2997]
[1672848190853,56.25,13.344,13.316,103.2997]
[1672848191063,20.0,13.343,13.316,103.2997]
[1672848191378,56.26,13.342,13.322,38.72140066]
[1672848191566,280.92,13.351,13.323,56.34]
[1672848192617,20.0,13.35,13.323,56.34]
[1672848192822,56.23,13.349,13.323,56.34]
[1672848193036,20.0,13.348,13.324,70.1127]
[1672848193260,56.24,13.347,13.325,56.33]
[1672848193483,20.0,13.346,13.325,56.33]
[1672848194086,20.0,13.35,13.326,20.0]
[1672848194301,56.23,13.349,13.327,56.33]
[1672848194507,56.19,13.358,13.327,56.33]
[1672848195134,53.69,13.358,13.327,56.33]
[1672848195344,53.69,13.358,13.328,48.0385]
[1672848195573,53.69,13.358,13.329,56.32]
[1672848195891,53.69,13.358,13.33,109.1364]
[1672848196090,53.69,13.358,13.331,56.31]
[1672848196509,224.7,13.361,13.331,56.31]
[1672848196714,56.19,13.36,13.331,56.31]
[1672848197350,56.19,13.36,13.332,70.8417]
[1672848197562,280.89,13.36,13.333,56.3]
[1672848198416,20.0,13.359,13.333,56.3]
[1672848198736,56.19,13.358,13.333,56.3]
[1672848198951,20.0,13.357,13.333,56.3]
[1672848199138,56.2,13.356,13.332,70.8417]
[1672848199348,20.0,13.355,13.332,70.8417]
[1672848199571,56.21,13.354,13.333,56.3]
[1672848199793,20.0,13.353,13.333,56.3]
[1672848200504,20.0,13.362,13.333,56.3]
[1672848200714,56.18,13.361,13.334,21.7811836]
[1672848200927,20.0,13.36,13.335,56.29]
[1672848201145,56.19,13.359,13.335,56.29]
[1672848201354,20.0,13.358,13.336,46.1315836]
[1672848201571,56.2,13.357,13.336,46.1315836]
[1672848201780,20.0,13.356,13.337,21.7811836]
[1672848202411,20.0,13.362,13.338,56.28]
[1672848202727,56.18,13.361,13.339,21.7811836]
[1672848202934,280.88,13.361,13.339,21.7811836]
[1672848203137,20.0,13.36,13.338,114.3411]
[1672848203340,56.19,13.359,13.338,114.3411]
[1672848203555,20.0,13.358,13.338,114.3411]
[1672848203765,56.2,13.357,13.338,114.3411]
[1672848204094,20.0,13.356,13.338,114.3411]
[1672848204303,56.21,13.355,13.338,114.3411]
[1672848204615,20.0,13.354,13.338,114.3411]
[1672848204823,30.00273094,13.354,13.338,114.3411]
[1672848205021,66.22273094,13.353,13.338,114.3411]
[1672848205548,20.0,13.352,13.338,114.3411]
[1672848206601,112.0792,13.365,13.338,114.3411]
[1672848206602,10.00273094,13.355,13.338,114.3411]
[1672848206814,20.0,13.354,13.338,114.3411]
[1672848207558,20.0,13.356,13.338,114.3411]
[1672848208083,56.21,13.355,13.338,114.3411]
[1672848208294,20.0,13.354,13.338,114.3411]
[1672848208698,56.22,13.353,13.338,114.3411]
[1672848209029,20.0,13.352,13.338,114.3411]